bitfinex/quotes_SOLUSD_20240916
["timestamp","ask_amount","ask_price","bid_price","bid_amount"]
[1726519334267,7.6412,130.87,130.83,7.6434]
[1726519335991,7.6418,130.86,130.83,7.6434]
[1726519337362,20.2538412,130.89,130.8,15.8264]
[1726519337589,0.2538412,130.89,130.82,61.996484]
[1726519337889,0.2538412,130.89,130.83,1.52817354]
[1726519338689,0.2538412,130.89,130.82,61.996484]
[1726519339286,7.8941412,130.89,130.86,7.6417]
[1726519339887,20.2538412,130.89,130.87,7.6411]
[1726519340099,0.2538412,130.89,130.88,7.6405]
[1726519340267,0.2538412,130.89,130.88,26.7419]
[1726519340467,0.2538412,130.89,130.88,50.518784]
[1726519340662,0.2538412,130.89,130.88,66.26566436]
[1726519340971,0.2538412,130.89,130.88,86.26566436]
[1726519341383,0.2538412,130.89,130.88,107.89606436]
[1726519341686,0.2538412,130.93,130.92,26.7338]
[1726519342402,0.2538412,130.93,130.92,50.510684]
[1726519343075,0.2538412,130.93,130.92,66.25756436]
[1726519343267,0.2538412,130.93,130.92,50.510684]
[1726519351277,0.2538412,130.93,130.92,26.7338]
[1726519362416,0.2538412,130.93,130.92,50.510684]
[1726519363499,0.2538412,130.93,130.92,80.510684]
[1726519363697,0.2538412,130.93,130.92,115.780984]
[1726519363896,0.2538412,130.93,130.92,131.48452959]
[1726519366596,0.2538412,130.93,130.92,115.780984]
[1726519367206,0.2538412,130.93,130.92,46.7338]
[1726519368385,0.2538412,130.93,130.92,70.510684]
[1726519370186,0.2538412,130.93,130.92,86.21422959]
[1726519370690,0.2538412,130.93,130.92,116.21422959]
[1726519372230,0.2538412,130.93,130.92,86.21422959]
[1726519372615,0.2538412,130.93,130.92,70.510684]
[1726519378207,0.2538412,130.93,130.92,86.21422959]
[1726519380623,0.2538412,130.93,130.92,70.510684]
[1726519380826,0.2538412,130.93,130.92,26.7338]
[1726519391416,0.2538412,130.93,130.92,66.21422959]
[1726519391927,0.2538412,130.93,130.92,67.74074366]
[1726519393021,0.2538412,130.93,130.92,66.21422959]
[1726519393915,0.2538412,130.93,130.92,96.21422959]
[1726519395222,0.2538412,130.93,130.92,66.21422959]
[1726519397032,0.2538412,130.93,130.92,50.510684]
[1726519399235,0.2538412,130.93,130.92,26.7338]
[1726519399539,0.2538412,130.93,130.92,19.0956]
[1726519399716,0.2538412,130.93,130.92,26.7338]
[1726519400920,0.2538412,130.93,130.92,50.510684]
[1726519402019,0.2538412,130.93,130.92,88.701884]
[1726519408926,0.2538412,130.93,130.92,64.925]
[1726519417143,0.2538412,130.93,130.92,26.7338]
[1726519422342,0.2538412,130.93,130.92,50.510684]
[1726519428226,0.2538412,130.93,130.92,26.7338]
[1726519434839,0.2538412,130.93,130.92,30.46368891]
[1726519435152,0.2538412,130.93,130.92,54.24057291]
[1726519435450,0.2538412,130.93,130.92,69.9441185]
[1726519435658,0.2538412,130.93,130.92,73.67399911]
[1726519435831,0.2538412,130.93,130.92,69.9441102]
[1726519437754,0.2538412,130.93,130.92,54.24056461]
[1726519438828,0.2538412,130.93,130.92,54.24058671]
[1726519439528,0.2538412,130.93,130.92,30.46370271]
[1726519440031,0.2538412,130.93,130.92,26.7338]
[1726519441835,0.2538412,130.93,130.92,3.72998411]
[1726519442148,0.2538412,130.93,130.9,26.7375]
[1726519442350,0.2538412,130.93,130.91,7.6387]
[1726519442952,0.2538412,130.93,130.9,26.7374]
[1726519446838,14.3570412,130.93,130.9,19.0983]
[1726519447157,14.3570412,130.93,130.89,7.6397]
[1726519449759,0.2538412,130.93,130.9,19.0984]
[1726519451063,0.2538412,130.93,130.9,26.7375]
[1726519453156,0.2538412,130.93,130.91,7.6388]
[1726519453353,0.2538412,130.93,130.92,1.52520892]
[1726519453658,0.2538412,130.93,130.92,32.94029292]
[1726519453868,0.2538412,130.93,130.92,48.64383851]
[1726519454045,0.2538412,130.93,130.92,98.64344961]
[1726519454252,0.2538412,130.93,130.92,102.37243731]
[1726519454862,0.2538412,130.93,130.92,100.84761729]
[1726519455757,0.2538412,130.93,130.92,97.11862959]
[1726519455969,0.2538412,130.93,130.92,100.84760785]
[1726519456451,0.2538412,130.93,130.92,104.57658139]
[1726519458667,0.2538412,130.93,130.92,100.84760785]
[1726519462446,0.2538412,130.93,130.92,97.11862959]
[1726519462644,0.2538412,130.93,130.92,81.415084]
[1726519462955,0.2538412,130.93,130.92,37.6382]
[1726519463672,0.2538412,130.93,130.92,23.34174559]
[1726519464342,0.2538412,130.93,130.92,47.11862959]
[1726519470574,0.2538412,130.93,130.92,31.415084]
[1726519476256,0.2538412,130.93,130.92,7.6382]
[1726519501491,0.2538412,130.93,130.92,11.36795507]
[1726519502069,0.2538412,130.93,130.92,15.09771014]
[1726519502272,0.2538412,130.93,130.92,11.36795507]
[1726519503764,0.2538412,130.93,130.92,11.36799286]
[1726519505977,0.2538412,130.93,130.92,35.14485796]
[1726519506182,0.2538412,130.93,130.92,58.65153226]
[1726519507988,0.2538412,130.93,130.92,42.94798667]
[1726519508993,0.2538412,130.93,130.92,35.14485796]
[1726519509295,0.2538412,130.93,130.92,42.94725443]
[1726519511279,0.2538412,130.93,130.92,11.36764544]
[1726519516889,0.2538412,130.93,130.92,7.6382]
[1726519517098,0.2538412,130.93,130.92,11.36792583]
[1726519521788,0.2538412,130.93,130.92,3.72972583]
[1726519522102,0.2538412,130.93,130.91,26.7344]
[1726519524508,7.6382,130.92,130.89,26.7396]
[1726519524803,6.7621412,130.93,130.87,7.641]
[1726519524804,7.6389,130.91,130.87,7.641]
[1726519525605,27.6382,130.92,130.87,7.641]
[1726519526306,27.6382,130.92,130.86,19.1034]
[1726519526307,14.3998412,130.93,130.86,15.70354559]
[1726519526510,0.2538412,130.93,130.92,23.34174559]
[1726519527397,0.2538412,130.93,130.92,7.6382]
[1726519528184,0.2538412,130.93,130.9,26.7364]
[1726519528505,0.2538412,130.93,130.91,7.6387]
[1726519528707,0.2538412,130.93,130.92,7.6382]
[1726519535908,0.2538412,130.93,130.92,31.415084]
[1726519537005,0.2538412,130.93,130.92,35.14451242]
[1726519537487,0.2538412,130.93,130.92,31.415084]
[1726519539114,0.2538412,130.93,130.92,47.11862959]
[1726519539600,0.2538412,130.93,130.92,50.84802542]
[1726519539798,0.2538412,130.93,130.92,50.84802328]
[1726519540617,0.2538412,130.93,130.92,47.11862959]
[1726519543984,0.2538412,130.93,130.92,31.415084]
[1726519544392,0.2538412,130.93,130.92,7.6382]
[1726519548413,0.2538412,130.93,130.92,26.7338]
[1726519549919,0.2538412,130.93,130.92,66.21422959]
[1726519555627,0.2538412,130.93,130.92,50.510684]
[1726519555810,0.2538412,130.93,130.92,26.7338]
[1726519558128,0.2538412,130.93,130.92,50.510684]
[1726519558509,0.2538412,130.93,130.92,66.21422959]
[1726519560627,0.2538412,130.93,130.92,26.7338]
[1726519561016,0.2538412,130.93,130.92,50.510684]
[1726519562140,0.2538412,130.93,130.92,66.21422959]
[1726519564037,0.2538412,130.93,130.92,26.7338]
[1726519564611,0.2538412,130.93,130.92,19.0956]
[1726519567421,0.2538412,130.93,130.92,26.7338]
[1726519569518,0.2538412,130.93,130.9,19.0984]
[1726519569821,0.2538412,130.93,130.9,26.7378]
[1726519573914,7.8915412,130.93,130.89,7.6399]
[1726519574742,0.2538412,130.93,130.9,7.6392]
[1726519577843,7.6384,130.92,130.89,19.0994]
[1726519579744,7.6384,130.92,130.89,26.7393]
[1726519580051,27.8916412,130.93,130.89,26.7393]
[1726519580543,0.2538412,130.93,130.91,19.0968]
[1726519580745,0.2538412,130.93,130.92,7.6382]
[1726519596961,0.2538412,130.93,130.91,26.7354]
[1726519599660,0.2538412,130.93,130.91,19.0968]
[1726519599858,7.8917412,130.93,130.89,26.7396]
[1726519600064,24.2521412,130.93,130.89,26.7396]
[1726519600860,7.6384,130.92,130.89,19.0998]
[1726519601068,7.6384,130.92,130.89,26.7396]
[1726519603847,24.2521412,130.93,130.89,26.7396]
[1726519617174,16.6142412,130.93,130.9,7.6389]
[1726519617374,16.6142412,130.93,130.91,7.6387]
[1726519617555,16.6142412,130.93,130.91,26.7357]
[1726519620173,0.2538412,130.93,130.92,7.6382]
[1726519620357,20.2538412,130.93,130.91,26.7356]
[1726519620866,20.2538412,130.93,130.91,19.097]
[1726519621057,27.8914412,130.93,130.9,7.6392]
[1726519622858,27.8914412,130.93,130.89,26.7395]
[1726519623061,7.6385,130.92,130.89,19.0997]
[1726519625373,7.6385,130.92,130.89,26.7396]
[1726519631293,27.8917412,130.93,130.89,26.7396]
[1726519631679,20.2538412,130.93,130.89,26.7396]
[1726519631885,7.6383,130.92,130.89,26.7396]
[1726519632083,23.0024,130.91,130.87,7.6407]
[1726519632288,7.6395,130.9,130.86,26.7451]
[1726519632481,7.64,130.89,130.86,19.1036]
[1726519633271,7.64,130.89,130.86,26.7453]
[1726519635486,13.9289,130.9,130.87,7.641]
[1726519635686,15.3633,130.91,130.87,19.1015]
[1726519636164,15.3633,130.91,130.89,7.6396]
[1726519642408,6.5431412,130.93,130.9,26.7378]
[1726519646587,0.2538412,130.93,130.9,19.0984]
[1726519646904,0.2538412,130.93,130.92,26.7338]
[1726519647395,0.2538412,130.93,130.92,66.21422959]
[1726519651904,0.2538412,130.93,130.92,86.21422959]
[1726519658181,0.2538412,130.93,130.92,46.7338]
[1726519661304,0.2538412,130.93,130.92,62.43734559]
[1726519661507,0.2538412,130.93,130.92,86.21422959]
[1726519664696,0.2538412,130.93,130.92,101.91892959]
[1726519667601,0.2538412,130.93,130.92,131.91892959]
[1726519668403,0.2538412,130.93,130.92,116.21422959]
[1726519668599,0.2538412,130.93,130.92,86.21422959]
[1726519668922,0.2538412,130.93,130.92,62.43734559]
[1726519670401,0.2538412,130.93,130.92,86.21422959]
[1726519671418,0.2538412,130.97,130.92,86.21422959]
[1726519671419,0.2538412,130.97,130.96,88.681984]
[1726519671598,0.2538412,130.97,130.96,104.38552959]
[1726519671916,0.2538412,130.97,130.96,88.681984]
[1726519675525,0.2538412,130.97,130.96,104.38552959]
[1726519679521,0.2538412,130.97,130.96,64.9051]
[1726519680745,0.2538412,130.97,130.96,104.38552959]
[1726519681412,0.2538412,130.97,130.96,88.681984]
[1726519682831,0.2538412,130.97,130.96,64.9051]
[1726519684405,0.2538412,130.97,130.96,88.681984]
[1726519684806,0.2538412,130.97,130.96,64.9051]
[1726519685238,0.2538412,130.97,130.96,26.7256]
[1726519685431,0.2538412,130.97,130.91,38.1924]
[1726519685432,0.2538412,130.97,130.93,19.0931]
[1726519685646,7.6359,130.96,130.93,19.0931]
[1726519686702,0.2538412,130.97,130.93,19.0931]
[1726519687031,27.8893412,130.97,130.93,26.7307]
[1726519687235,7.6359,130.96,130.93,26.7307]
[1726519687437,7.6359,130.96,130.92,7.6382]
[1726519695933,7.6366,130.95,130.91,7.6385]
[1726519696515,7.6371,130.94,130.91,7.6385]
[1726519696737,23.851,130.94,130.9,26.7364]
[1726519696935,7.6382,130.92,130.89,7.6398]
[1726519697138,14.0397,130.93,130.89,7.6398]
[1726519699433,7.6384,130.92,130.88,26.7415]
[1726519699646,27.6384,130.92,130.89,7.6399]
[1726519699936,20.0,130.92,130.89,7.6399]
[1726519700742,27.6382,130.92,130.88,26.7418]
[1726519701734,20.0,130.92,130.89,7.6398]
[1726519703738,20.0,130.92,130.9,7.6393]
[1726519705137,6.4019,130.93,130.91,7.6388]
[1726519705509,20.0,130.92,130.91,7.6388]
[1726519705714,20.0,130.92,130.9,26.7369]
[1726519705914,20.0,130.92,130.9,19.0977]
[1726519712825,27.6383,130.92,130.88,26.7415]
[1726519714039,7.6388,130.91,130.88,26.7415]
[1726519715642,7.6394,130.9,130.86,19.1043]
[1726519715944,7.6394,130.9,130.86,26.7457]
[1726519719147,7.6394,130.9,130.87,7.6411]
[1726519726154,7.6388,130.91,130.88,7.6403]
[1726519726648,27.6384,130.92,130.88,7.6403]
[1726519727258,27.6384,130.92,130.89,7.6399]
[1726519729065,27.6384,130.92,130.88,7.6403]
[1726519733443,7.6389,130.91,130.88,7.6403]
[1726519742872,27.6383,130.92,130.88,7.6403]
[1726519747155,7.6389,130.91,130.88,7.6403]
[1726519750466,7.6398,130.9,130.87,19.1015]
[1726519750781,7.6398,130.9,130.87,26.7426]
[1726519754978,27.6388,130.92,130.87,26.7426]
[1726519755269,7.6389,130.91,130.87,26.7426]
[1726519756749,7.6394,130.9,130.87,26.7426]
[1726519758111,7.6394,130.9,130.87,19.1015]
[1726519758974,7.6394,130.9,130.87,26.7426]
[1726519766075,7.639,130.91,130.87,26.7426]
[1726519770881,7.6394,130.9,130.87,19.1015]
[1726519771660,20.0,130.92,130.85,26.748]
[1726519771661,39.0959,130.92,130.85,26.748]
[1726519772585,7.6401,130.89,130.85,26.748]
[1726519773164,7.6408,130.88,130.84,7.6425]
[1726519774088,7.6414,130.87,130.83,27.0044412]
[1726519774382,7.6417,130.86,130.83,27.0044412]
[1726519776985,7.6423,130.85,130.83,0.2538412]
[1726519777287,7.6429,130.84,130.83,0.2538412]
[1726519779185,27.6429,130.84,130.83,0.2538412]
[1726519796211,20.0,130.84,130.83,0.2538412]
[1726519801605,27.6429,130.84,130.83,0.2538412]
[1726519808513,51.419784,130.84,130.83,0.2538412]
[1726519809415,70.527084,130.84,130.83,0.2538412]
[1726519810233,70.527084,130.84,130.79,0.2538412]
[1726519810234,7.645,130.81,130.79,0.2538412]
[1726519815037,7.6452,130.8,130.79,0.2538412]
[1726519815527,51.422084,130.8,130.79,0.2538412]
[1726519816026,27.647,130.77,130.76,0.2538412]
[1726519816429,20.0,130.77,130.76,0.2538412]
[1726519816618,27.647,130.77,130.76,0.2538412]
[1726519825109,51.423884,130.77,130.76,0.2538412]
[1726519827238,27.647,130.77,130.76,0.2538412]
[1726519830546,20.0,130.77,130.76,0.2538412]
[1726519830740,7.6456,130.8,130.76,0.2538412]
[1726519830957,7.6459,130.79,130.76,0.2538412]
[1726519832126,20.0,130.78,130.76,0.2538412]
[1726519834735,7.6464,130.78,130.76,0.2538412]
[1726519835057,7.60597132,130.78,130.76,0.2538412]
[1726519835432,7.647,130.77,130.76,0.2538412]
[1726519836138,7.6465,130.78,130.76,0.2538412]
[1726519836327,27.646,130.79,130.76,0.2538412]
[1726519840244,27.646,130.79,130.76,7.9012412]
[1726519840750,34.8857,130.83,130.79,7.6454]
[1726519840751,20.0,130.82,130.79,7.6454]
[1726519840941,7.6435,130.83,130.79,7.6454]
[1726519842151,47.7446617,130.87,130.8,19.1129]
[1726519842152,6.3692,130.87,130.8,19.1129]
[1726519842342,88.1877,130.94,130.8,37.72394559]
[1726519842343,16.2476412,130.89,130.8,37.72394559]
[1726519842527,17.1476412,130.89,130.81,15.70354559]
[1726519842721,17.1476412,130.89,130.8,37.72394559]
[1726519843357,7.6415,130.87,130.83,7.6433]
[1726519843643,20.0,130.86,130.83,7.6433]
[1726519845237,20.0,130.86,130.82,26.7534]
[1726519845545,7.6419,130.86,130.82,26.7534]
[1726519847855,7.6423,130.85,130.82,19.1095]
[1726519852147,7.6419,130.86,130.82,26.7535]
[1726519852854,7.6423,130.85,130.82,19.1095]
[1726519853864,7.6423,130.85,130.82,26.7535]
[1726519856038,7.6429,130.84,130.81,7.6446]
[1726519858541,7.6429,130.84,130.8,23.1817]
[1726519859260,7.6436,130.83,130.79,26.7587]
[1726519859469,7.6441,130.82,130.79,26.7587]
[1726519859674,7.6436,130.83,130.79,26.7587]
[1726519859874,7.6436,130.83,130.8,7.6451]
[1726519860167,7.643,130.84,130.8,7.6451]
[1726519860745,27.6424,130.85,130.82,7.644]
[1726519860952,7.6419,130.86,130.82,7.644]
[1726519863962,7.6424,130.85,130.82,7.644]
[1726519866677,7.642,130.86,130.82,7.644]
[1726519870758,7.6424,130.85,130.82,7.644]
[1726519872454,7.6424,130.85,130.81,26.7547]
[1726519877361,7.6424,130.85,130.81,24.3498388]
[1726519877894,7.6419,130.86,130.83,7.6434]
[1726519878969,7.6423,130.85,130.81,24.3499388]
[1726519880587,7.643,130.84,130.81,24.3499388]
[1726519883200,7.643,130.84,130.81,7.6445]
[1726519884388,7.643,130.84,130.81,26.7548]
[1726519885385,23.776884,130.88,130.82,7.644]
[1726519885722,7.6421,130.86,130.83,7.6433]
[1726519886576,7.6421,130.86,130.82,7.6438]
[1726519887279,7.6421,130.86,130.83,7.6433]
[1726519887675,20.0,130.86,130.83,7.6433]
[1726519889977,27.6408,130.88,130.84,7.6427]
[1726519890890,20.0,130.86,130.84,7.6427]
[1726519891587,0.2538412,130.89,130.81,21.91894559]
[1726519891784,0.2538412,130.89,130.87,7.6411]
[1726519892104,0.2538412,130.89,130.87,26.7438]
[1726519892290,0.2538412,130.89,130.88,7.6405]
[1726519896682,0.2538412,130.89,130.88,62.39732959]
[1726519897004,0.2538412,130.89,130.88,46.693784]
[1726519899699,0.2538412,130.89,130.88,22.9169]
[1726519900008,0.2538412,130.89,130.87,26.7437]
[1726519900196,0.2538412,130.89,130.88,7.6405]
[1726519902000,0.2538412,130.89,130.87,26.66679977]
[1726519902710,0.2538412,130.89,130.87,19.02579977]
[1726519902899,0.2538412,130.89,130.83,15.70354559]
[1726519902900,0.2538412,130.89,130.84,19.106]
[1726519903711,7.6405,130.88,130.84,26.7487]
[1726519909228,7.8939412,130.89,130.85,7.6421]
[1726519911026,7.6412,130.87,130.84,26.7488]
[1726519911234,0.2538412,130.89,130.84,26.7488]
[1726519911720,7.6409,130.88,130.84,26.7488]
[1726519912731,7.6414,130.87,130.84,19.106]
[1726519913197,7.6414,130.87,130.84,26.7488]
[1726519914330,7.6408,130.88,130.84,26.7488]
[1726519916715,7.6413,130.87,130.84,19.106]
[1726519917217,7.6413,130.87,130.83,7.6432]
[1726519917425,7.6423,130.85,130.82,7.6438]
[1726519917621,7.6423,130.85,130.81,26.7548]
[1726519920707,7.643,130.84,130.81,26.7548]
[1726519920906,7.6425,130.85,130.81,26.7548]
[1726519921113,7.6429,130.84,130.81,26.7548]
[1726519921917,7.6429,130.84,130.81,19.1105]
[1726519923930,7.6438,130.83,130.79,26.7601]
[1726519924230,7.6447,130.81,130.77,26.764]
[1726519926027,7.6454,130.8,130.77,19.1173]
[1726519928316,7.6454,130.8,130.77,26.7643]
[1726519929111,27.6449,130.81,130.77,26.7643]
[1726519929603,13.9671,130.82,130.77,19.1173]
[1726519929813,27.6438,130.83,130.79,26.7601]
[1726519933212,7.6441,130.82,130.79,26.7601]
[1726519934229,7.6441,130.82,130.79,19.1145]
[1726519935232,23.2141,130.84,130.8,7.6448]
[1726519935408,6.1651,130.85,130.81,7.6444]
[1726519935409,13.8077,130.85,130.81,7.6444]
[1726519935609,7.6421,130.86,130.82,7.6436]
[1726519935936,16.5811,130.87,130.81,26.7546]
[1726519936135,7.6425,130.85,130.81,26.7546]
[1726519936936,7.6429,130.84,130.81,26.7546]
[1726519943035,7.6425,130.85,130.82,7.644]
[1726519943335,7.6425,130.85,130.81,26.7545]
[1726519948941,7.6431,130.84,130.81,26.7545]
[1726519950044,7.6431,130.84,130.81,19.1102]
[1726519950222,7.6435,130.83,130.8,7.645]
[1726519950538,7.6435,130.83,130.79,26.7601]
[1726519950740,7.6435,130.83,130.8,7.6452]
[1726519959543,7.6441,130.82,130.79,19.1145]
[1726519960048,7.6441,130.82,130.78,7.6461]
[1726519960340,7.6447,130.81,130.78,7.6461]
[1726519960551,7.6454,130.8,130.77,26.764]
[1726519960847,7.6454,130.8,130.77,19.1172]
[1726519961944,7.6466,130.78,130.76,0.2538412]
[1726519964145,7.647,130.77,130.76,0.2538412]
[1726519967044,27.647,130.77,130.76,0.2538412]
[1726519968278,27.647,130.77,130.72,0.2538412]
[1726519968279,7.6483,130.75,130.72,0.2538412]
[1726519972460,7.6483,130.75,130.72,7.9037412]
[1726519977468,7.6483,130.75,130.72,0.2538412]
[1726519978468,36.0792,130.77,130.72,0.2538412]
[1726519978768,7.649,130.74,130.72,0.2538412]
[1726519984677,36.0792,130.77,130.72,0.2538412]
[1726519984876,36.0792,130.77,130.68,0.2538412]
[1726519984877,7.651,130.71,130.68,0.2538412]
[1726519986874,15.59827024,130.76,130.69,7.6515]
[1726519986875,6.1358,130.76,130.69,7.6515]
[1726519987056,20.0,130.72,130.69,7.6515]
[1726519988665,7.6505,130.71,130.68,27.0363412]
[1726519989050,39.1206,130.75,130.68,0.2538412]
[1726519989257,20.0,130.73,130.68,0.2538412]
[1726519989770,7.6511,130.7,130.68,0.2538412]
[1726519991767,20.0,130.71,130.68,7.9059412]
[1726519991966,7.6501,130.72,130.68,7.9059412]
[1726519992175,7.6513,130.7,130.68,0.2538412]
[1726519993292,20.0,130.71,130.68,0.2538412]
[1726519993483,20.0,130.73,130.68,0.2538412]
[1726519993963,20.0,130.74,130.68,0.2538412]
[1726519994160,20.0,130.74,130.69,19.1281]
[1726519994367,23.6822,130.75,130.71,7.6504]
[1726519994580,7.6487,130.74,130.71,7.6504]
[1726519994885,7.6487,130.74,130.7,7.6509]
[1726519995176,7.6487,130.74,130.71,7.6505]
[1726519995555,7.6487,130.74,130.7,7.6509]
[1726519995778,20.0,130.74,130.71,7.6504]
[1726519996295,20.0,130.75,130.72,7.6497]
[1726519996579,27.6482,130.75,130.71,26.7763]
[1726519998573,27.6482,130.75,130.72,7.6499]
[1726519998779,7.6488,130.74,130.71,19.1261]
[1726519998955,7.6488,130.74,130.7,7.6507]
[1726519999160,7.6495,130.73,130.69,7.6516]
[1726519999385,23.776884,130.74,130.68,35.2065412]
[1726519999584,7.6499,130.72,130.68,42.8585412]
[1726519999890,7.6499,130.72,130.68,27.0351412]
[1726520005056,20.0,130.75,130.7,7.651]
[1726520005260,20.0,130.73,130.7,7.651]
[1726520005876,20.0,130.73,130.7,26.7786]
[1726520006099,20.0,130.73,130.71,7.6504]
[1726520006266,7.6483,130.75,130.71,7.6504]
[1726520006464,6.1358,130.76,130.7,19.1276]
[1726520006465,7.648,130.76,130.72,7.6498]
[1726520007179,7.648,130.76,130.73,7.6492]
[1726520007374,7.6468,130.78,130.74,7.6486]
[1726520007579,7.6471,130.77,130.73,26.7722]
[1726520007791,25.2595,130.8,130.73,26.7722]
[1726520007996,25.2595,130.8,130.73,19.1231]
[1726520007997,7.6479,130.76,130.73,19.1231]
[1726520008305,7.6479,130.76,130.73,26.7724]
[1726520009093,34.72115718,130.8,130.72,7.6497]
[1726520009283,7.6482,130.75,130.71,7.6502]
[1726520009600,7.6482,130.75,130.72,7.6498]
[1726520011414,7.6482,130.75,130.71,7.6502]
[1726520014399,7.6482,130.75,130.72,7.6498]
[1726520015206,7.6477,130.76,130.73,7.6493]
[1726520015505,20.0,130.78,130.74,7.6486]
[1726520015822,27.6467,130.78,130.74,7.6486]
[1726520016113,20.0,130.79,130.75,7.6479]
[1726520016296,7.6465,130.78,130.74,7.6485]
[1726520016499,27.6471,130.77,130.73,26.7724]
[1726520018002,27.6471,130.77,130.74,7.6487]
[1726520022385,6.1462,130.8,130.76,7.6475]
[1726520022713,20.0,130.8,130.76,7.6473]
[1726520023011,20.0,130.8,130.75,26.7681]
[1726520023012,7.6465,130.78,130.75,26.7681]
[1726520023526,7.6465,130.78,130.75,19.1201]
[1726520023694,7.647,130.77,130.74,7.6485]
[1726520023882,7.6466,130.78,130.74,7.6485]
[1726520029908,7.647,130.77,130.74,7.6485]
[1726520030614,7.647,130.77,130.73,26.7709]
[1726520031000,7.647,130.77,130.74,7.6486]
[1726520033409,7.647,130.77,130.73,26.7711]
[1726520033617,7.6478,130.76,130.73,26.7711]
[1726520034494,7.6472,130.77,130.73,26.7711]
[1726520034813,7.6472,130.77,130.74,7.6487]
[1726520035834,27.6468,130.78,130.74,7.6487]
[1726520036012,7.6468,130.78,130.74,7.6487]
[1726520036725,7.6468,130.78,130.75,7.6481]
[1726520038922,7.6468,130.78,130.74,7.6485]
[1726520040703,7.6471,130.77,130.74,7.6485]
[1726520040903,7.6476,130.76,130.73,26.7709]
[1726520041107,7.6476,130.76,130.73,19.1219]
[1726520041302,7.6482,130.75,130.72,7.6496]
[1726520041509,7.6487,130.74,130.71,26.7762]
[1726520042617,7.6478,130.76,130.73,7.6492]
[1726520042821,7.6473,130.77,130.74,7.6486]
[1726520043402,7.6473,130.77,130.73,7.649]
[1726520044310,7.6477,130.76,130.73,7.649]
[1726520049030,27.6467,130.78,130.74,7.6487]
[1726520049330,7.647,130.77,130.74,7.6487]
[1726520051424,7.6477,130.76,130.73,7.6491]
[1726520051630,7.6477,130.76,130.72,19.1235]
[1726520052026,7.6477,130.76,130.72,26.7731]
[1726520052830,23.776884,130.75,130.69,34.2236]
[1726520053015,7.6503,130.72,130.69,34.2236]
[1726520053356,7.6503,130.72,130.69,19.1278]
[1726520053533,7.6495,130.73,130.69,26.7793]
[1726520055607,7.6499,130.72,130.69,19.1278]
[1726520055818,7.6499,130.72,130.68,7.9059412]
[1726520056538,7.6506,130.71,130.68,7.9059412]
[1726520063442,23.776884,130.75,130.68,7.9059412]
[1726520063659,7.6466,130.78,130.72,19.1239]
[1726520063935,7.646,130.79,130.74,7.6486]
[1726520064438,7.6474,130.77,130.72,26.7737]
[1726520066734,7.6476,130.76,130.72,26.7737]
[1726520069228,7.6482,130.75,130.72,19.1239]
[1726520069425,7.6482,130.75,130.71,7.6504]
[1726520083652,7.6489,130.74,130.7,7.6508]
[1726520087544,27.6516,130.69,130.68,0.2538412]
[1726520091452,46.7808,130.69,130.68,0.2538412]
[1726520091651,7.654,130.65,130.64,0.2538412]
[1726520093130,7.6536,130.66,130.64,0.2538412]
[1726520098059,7.654,130.65,130.64,0.2538412]
[1726520111762,7.6532,130.67,130.64,0.2538412]
[1726520112441,7.6532,130.67,130.64,7.9083412]
[1726520112944,7.6532,130.67,130.64,0.2538412]
[1726520115173,7.6526,130.68,130.64,7.9083412]
[1726520115468,7.653,130.67,130.64,0.2538412]
[1726520115672,20.0,130.68,130.64,0.2538412]
[1726520115842,7.654,130.65,130.64,0.2538412]
[1726520117049,7.6536,130.66,130.64,0.2538412]
[1726520118764,34.1685,130.68,130.64,0.2538412]
[1726520119146,34.1685,130.68,130.64,7.9084412]
[1726520124367,34.1685,130.68,130.64,0.2538412]
[1726520124866,34.1685,130.68,130.64,7.9080412]
[1726520125439,7.653,130.67,130.64,7.9080412]
[1726520126858,7.653,130.67,130.64,0.2538412]
[1726520127261,7.6537,130.66,130.64,0.2538412]